fUST/lending_fUST_20251206
["ID","MTS","AMOUNT","RATE_DAILY","PERIOD"]
[396420593,1764964257557,-500.0,0.00016712,2]
[396420594,1764964257568,-500.0,0.00016712,2]
[396420595,1764964257577,-2060.56,0.00016712,2]
[396420596,1764964257588,-500.0,0.00016712,2]
[396420597,1764964257597,-500.0,0.00016712,2]
[396420598,1764964257607,-673.73,0.00016712,2]
[396420599,1764964257616,-701.23,0.00016712,2]
[396420600,1764964257626,-1698.62,0.00016712,2]
[396420601,1764964257635,-658.93,0.00016712,2]
[396420602,1764964257644,-500.0,0.00016712,2]
[396420603,1764964257654,-742.38,0.00016712,2]
[396420604,1764964257665,-747.63,0.00016712,2]
[396420605,1764964257675,-667.01,0.00016712,2]
[396420606,1764964257685,-507.15375885,0.00016712,2]
[396420607,1764964257695,-500.0,0.00016712,2]
[396420608,1764964257704,-500.0,0.00016712,2]
[396420609,1764964257714,-500.0,0.00016712,2]
[396420610,1764964257724,-1151.69,0.00016712,2]
[396420611,1764964257734,-721.72,0.00016712,2]
[396420612,1764964257744,-500.0,0.00016712,2]
[396420613,1764964257754,-991.55,0.00016712,2]
[396420614,1764964257763,-500.0,0.00016712,2]
[396420615,1764964257772,-500.0,0.00016712,2]
[396420616,1764964257781,-500.0,0.00016712,2]
[396420617,1764964257791,-500.0,0.00016712,2]
[396420618,1764964257800,-500.0,0.00016712,2]
[396420619,1764964257810,-596.6,0.00016712,2]
[396420620,1764964257819,-1963.89,0.00016712,2]
[396420621,1764964257828,-2056.09,0.00016712,2]
[396420622,1764964257838,-500.0,0.00016712,2]
[396420623,1764964257848,-500.0,0.00016712,2]
[396420624,1764964257857,-1932.03,0.00016712,2]
[396420625,1764964257867,-1925.2,0.00016712,2]
[396420626,1764964257876,-289.7912871,0.00016712,2]
[396420627,1764964257886,-694.04,0.00016712,2]
[396420628,1764964257896,-1279.51,0.00016712,2]
[396420629,1764964257906,-500.0,0.00016712,2]
[396420630,1764964257916,-552.82,0.00016712,2]
[396420631,1764964257925,-500.0,0.00016712,2]
[396420632,1764964257936,-1066.32,0.00016712,2]
[396420633,1764964257946,-500.0,0.00016712,2]
[396420634,1764964257955,-1282.6,0.00016712,2]
[396420635,1764964257965,-500.0,0.00016712,2]
[396420636,1764964257975,-1077.48,0.00016712,2]
[396420637,1764964257984,-500.0,0.00016712,2]
[396420638,1764964257998,-500.0,0.00016712,2]
[396420639,1764964258008,-500.0,0.00016712,2]
[396420640,1764964258017,-500.0,0.00016712,2]
[396420641,1764964258026,-1056.93,0.00016712,2]
[396420642,1764964258037,-798.61,0.00016712,2]
[396420643,1764964258046,-1405.18,0.00016712,2]
[396420644,1764964258056,-500.0,0.00016712,2]
[396420645,1764964258066,-632.60816922,0.00016712,2]
[396420646,1764964258075,-500.0,0.00016712,2]
[396420647,1764964258085,-1114.7,0.00016712,2]
[396420648,1764964258094,-867.37,0.00016712,2]
[396420649,1764964258104,-500.0,0.00016712,2]
[396420650,1764964258114,-773.03,0.00016712,2]
[396420651,1764964258124,-2394.89,0.00016712,2]
[396420652,1764964258134,-500.4,0.00016712,2]
[396420653,1764964258143,-500.0,0.00016712,2]
[396420654,1764964258153,-1140.55,0.00016712,2]
[396420655,1764964258162,-500.0,0.00016712,2]
[396420656,1764964258171,-507.01,0.00016712,2]
[396420657,1764964258181,-500.0,0.00016712,2]
[396420658,1764964258191,-500.0,0.00016712,2]
[396420659,1764964258201,-753.55,0.00016712,2]
[396420660,1764964258211,-500.0,0.00016712,2]
[396420661,1764964258220,-500.0,0.00016712,2]
[396420662,1764964258230,-500.0,0.00016712,2]
[396420663,1764964258240,-500.0,0.00016712,2]
[396420664,1764964258250,-1160.45,0.00016712,2]
[396420665,1764964258259,-500.0,0.00016712,2]
[396420666,1764964258269,-801.76,0.00016712,2]
[396420667,1764964258279,-542.43,0.00016712,2]
[396420668,1764964258288,-2713.85,0.00016712,2]
[396420669,1764964258298,-500.0,0.00016712,2]
[396420670,1764964258307,-500.0,0.00016712,2]
[396420671,1764964258317,-914.46,0.00016712,2]
[396420672,1764964258326,-500.0,0.00016712,2]
[396420673,1764964258336,-500.0,0.00016712,2]
[396420674,1764964258345,-4419.03,0.00016712,2]
[396420675,1764964258355,-500.0,0.00016712,2]
[396420676,1764964258365,-526.41,0.00016712,2]
[396420677,1764964258374,-500.0,0.00016712,2]
[396420678,1764964258384,-588.91,0.00016712,2]
[396420679,1764964258394,-500.0,0.00016712,2]
[396420680,1764964258403,-981.61,0.00016712,2]
[396420681,1764964258412,-562.03,0.00016712,2]
[396420682,1764964258422,-1146.46,0.00016712,2]
[396420683,1764964258431,-500.0,0.00016712,2]
[396420684,1764964258441,-1195.63,0.00016712,2]
[396420685,1764964258450,-500.0,0.00016712,2]
[396420686,1764964258459,-500.0,0.00016712,2]
[396420687,1764964258469,-500.0,0.00016712,2]
[396420688,1764964258478,-2202.96,0.00016712,2]
[396420689,1764964258487,-500.0,0.00016712,2]
[396420690,1764964258496,-769.64,0.00016712,2]
[396420691,1764964258505,-500.0,0.00016712,2]
[396420692,1764964258514,-2092.31,0.00016712,2]
[396420693,1764964258524,-813.86,0.00016712,2]
[396420694,1764964258534,-530.06,0.00016712,2]
[396420695,1764964258543,-500.0,0.00016712,2]
[396420696,1764964258552,-500.0,0.00016712,2]
[396420697,1764964258561,-500.0,0.00016712,2]
[396420698,1764964258571,-708.5,0.00016712,2]
[396420699,1764964258580,-500.0,0.00016712,2]
[396420700,1764964258589,-500.0,0.00016712,2]
[396420701,1764964258599,-275.96014363,0.00016712,2]
[396420702,1764964258609,-528.45,0.00016712,2]
[396420703,1764964258618,-500.0,0.00016712,2]
[396420704,1764964258628,-500.0,0.00016712,2]
[396420705,1764964258637,-532.79,0.00016712,2]
[396420706,1764964258647,-1131.46,0.00016712,2]
[396420707,1764964258656,-1131.9,0.00016712,2]
[396420708,1764964258666,-500.0,0.00016712,2]
[396420709,1764964258676,-500.0,0.00016712,2]
[396420710,1764964258685,-500.0,0.00016712,2]
[396420711,1764964258695,-500.0,0.00016712,2]
[396420712,1764964258704,-500.0,0.00016712,2]
[396420713,1764964258714,-608.86,0.00016712,2]
[396420714,1764964258723,-880.35,0.00016712,2]
[396420715,1764964258732,-784.6,0.00016712,2]
[396420716,1764964258741,-591.59102821,0.00016712,2]
[396420717,1764964258751,-500.0,0.00016712,2]
[396420718,1764964258760,-500.0,0.00016712,2]
[396420719,1764964258770,-589.81,0.00016712,2]
[396420720,1764964258779,-500.0,0.00016712,2]
[396420721,1764964258789,-500.0,0.00016712,2]
[396420722,1764964258798,-500.0,0.00016712,2]
[396420723,1764964258807,-537.52,0.00016712,2]
[396420724,1764964258817,-1014.04,0.00016712,2]
[396420725,1764964258826,-2220.46,0.00016712,2]
[396420726,1764964258835,-2190.66,0.00016712,2]
[396420727,1764964258845,-500.0,0.00016712,2]
[396420728,1764964258854,-500.0,0.00016712,2]
[396420729,1764964258863,-1158.75,0.00016712,2]
[396420730,1764964258872,-500.0,0.00016712,2]
[396420731,1764964258881,-500.0,0.00016712,2]
[396420732,1764964258890,-681.06,0.00016712,2]
[396420733,1764964258899,-500.0,0.00016712,2]
[396420734,1764964258908,-2115.78,0.00016712,2]
[396420735,1764964258917,-500.0,0.00016712,2]
[396420736,1764964258926,-766.35,0.00016712,2]
[396420737,1764964258936,-966.12,0.00016712,2]
[396420738,1764964258946,-914.28,0.00016712,2]
[396420739,1764964258955,-982.55,0.00016712,2]
[396420740,1764964258965,-500.0,0.00016712,2]
[396420741,1764964258974,-500.0,0.00016712,2]
[396420742,1764964258983,-500.0,0.00016712,2]
[396420743,1764964258996,-500.0,0.00016712,2]
[396420744,1764964259005,-500.0,0.00016712,2]
[396420745,1764964259088,-936.35,0.00016712,2]
[396420746,1764964259099,-500.0,0.00016712,2]
[396420747,1764964259108,-500.0,0.00016712,2]
[396420748,1764964259117,-500.0,0.00016712,2]
[396420749,1764964259127,-500.0,0.00016712,2]
[396420750,1764964259136,-500.0,0.00016712,2]
[396420751,1764964259145,-749.63,0.00016712,2]
[396420752,1764964259154,-500.0,0.00016712,2]
[396420753,1764964259163,-1641.15,0.00016712,2]
[396420754,1764964259172,-1076.77,0.00016712,2]
[396420755,1764964259181,-623.29417827,0.00016712,2]
[396420756,1764964259191,-500.0,0.00016712,2]
[396420757,1764964259200,-500.0,0.00016712,2]
[396420758,1764964259209,-500.0,0.00016712,2]
[396420759,1764964259219,-500.0,0.00016712,2]
[396420760,1764964259228,-603.68,0.00016712,2]
[396420761,1764964259237,-500.0,0.00016712,2]
[396420762,1764964259246,-698.96,0.00016712,2]
[396420763,1764964259255,-500.0,0.00016712,2]
[396420764,1764964259264,-1666.18,0.00016712,2]
[396420765,1764964259273,-671.97,0.00016712,2]
[396420766,1764964259283,-502.19,0.00016712,2]
[396420767,1764964259291,-2087.17,0.00016712,2]
[396420768,1764964259301,-500.0,0.00016712,2]
[396420769,1764964259311,-500.0,0.00016712,2]
[396420770,1764964259320,-500.0,0.00016712,2]
[396420771,1764964259329,-516.65,0.00016712,2]
[396420772,1764964259338,-500.0,0.00016712,2]
[396420773,1764964259348,-500.0,0.00016712,2]
[396420774,1764964259357,-2037.83,0.00016712,2]
[396420775,1764964259367,-501.13,0.00016712,2]
[396420776,1764964259376,-500.0,0.00016712,2]
[396420777,1764964259385,-571.62,0.00016712,2]
[396420778,1764964259394,-500.0,0.00016712,2]
[396420779,1764964259403,-1758.23,0.00016712,2]
[396420780,1764964259412,-4101.23,0.00016712,2]
[396420781,1764964259421,-1128.95,0.00016712,2]
[396420782,1764964259430,-500.0,0.00016712,2]
[396420783,1764964259440,-507.46084675,0.00016712,2]
[396420784,1764964259449,-735.18,0.00016712,2]
[396420785,1764964259458,-2336.08,0.00016712,2]
[396420786,1764964259468,-500.0,0.00016712,2]
[396420787,1764964259476,-656.91,0.00016712,2]
[396420788,1764964259486,-500.0,0.00016712,2]
[396420789,1764964259495,-942.22,0.00016712,2]
[396420790,1764964259504,-606.67,0.00016712,2]
[396420791,1764964259514,-500.0,0.00016712,2]
[396420792,1764964259524,-500.0,0.00016712,2]
[396420793,1764964259533,-866.26,0.00016712,2]
[396420794,1764964259542,-500.0,0.00016712,2]
[396420795,1764964259551,-500.0,0.00016712,2]
[396420796,1764964259561,-500.0,0.00016712,2]
[396420797,1764964259570,-500.13,0.00016712,2]
[396420798,1764964259579,-500.0,0.00016712,2]
[396420799,1764964259588,-500.0,0.00016712,2]
[396420800,1764964259597,-500.0,0.00016712,2]
[396420801,1764964259606,-500.0,0.00016712,2]
[396420802,1764964259616,-500.0,0.00016712,2]
[396420803,1764964259625,-748.38,0.00016712,2]
[396420804,1764964259634,-784.77,0.00016712,2]
[396420805,1764964259643,-500.0,0.00016712,2]
[396420806,1764964259653,-3000.65,0.00016712,2]
[396420807,1764964259662,-525.35,0.00016712,2]
[396420808,1764964259671,-500.0,0.00016712,2]
[396420809,1764964259681,-500.0,0.00016712,2]
[396420810,1764964259691,-500.0,0.00016712,2]
[396420811,1764964259699,-632.24,0.00016712,2]
[396420812,1764964259709,-500.0,0.00016712,2]
[396420813,1764964259718,-734.19,0.00016712,2]
[396420814,1764964259727,-500.0,0.00016712,2]
[396420815,1764964259736,-500.0,0.00016712,2]
[396420816,1764964259745,-500.0,0.00016712,2]
[396420817,1764964259754,-1121.55,0.00016712,2]
[396420818,1764964259763,-4195.91,0.00016712,2]
[396420819,1764964259773,-500.0,0.00016712,2]
[396420820,1764964259783,-1169.87,0.00016712,2]
[396420821,1764964259792,-599.82529881,0.00016712,2]
[396420822,1764964259801,-500.0,0.00016712,2]
[396420823,1764964259810,-500.0,0.00016712,2]
[396420824,1764964259819,-500.0,0.00016712,2]
[396420825,1764964259828,-1721.78,0.00016712,2]
[396420826,1764964259837,-797.93,0.00016712,2]
[396420827,1764964259847,-500.0,0.00016712,2]
[396420828,1764964259856,-500.0,0.00016712,2]
[396420829,1764964259865,-3352.24,0.00016712,2]
[396420830,1764964259874,-701.25,0.00016712,2]
[396420831,1764964259883,-500.0,0.00016712,2]
[396420832,1764964259892,-500.0,0.00016712,2]
[396420833,1764964259902,-1865.02,0.00016712,2]
[396420834,1764964259911,-500.0,0.00016712,2]
[396420835,1764964259920,-500.0,0.00016712,2]
[396420836,1764964259930,-547.35,0.00016712,2]
[396420837,1764964259940,-1140.86,0.00016712,2]
[396420838,1764964259950,-1061.3,0.00016712,2]
[396420839,1764964259959,-500.0,0.00016712,2]
[396420840,1764964259968,-581.3,0.00016712,2]
[396420841,1764964259977,-561.53,0.00016712,2]
[396420842,1764964259987,-1248.52,0.00016712,2]
[396420843,1764964259999,-500.0,0.00016712,2]
[396420844,1764964260008,-500.0,0.00016712,2]
[396420845,1764964260017,-565.64,0.00016712,2]
[396420846,1764964260031,-224.57466741,0.00016712,2]
[396420847,1764964260041,-500.0,0.00016712,2]
[396420848,1764964260050,-1569.73,0.00016712,2]
[396420849,1764964260061,-1818.55,0.00016712,2]
[396420850,1764964260070,-522.2,0.00016712,2]
[396420851,1764964260081,-875.06,0.00016712,2]
[396420852,1764964260091,-500.0,0.00016712,2]
[396420853,1764964260100,-500.0,0.00016712,2]
[396420854,1764964260110,-500.0,0.00016712,2]
[396420855,1764964260119,-1114.54,0.00016712,2]
[396420856,1764964260128,-500.0,0.00016712,2]
[396420857,1764964260137,-500.0,0.00016712,2]
[396420858,1764964260148,-500.0,0.00016712,2]
[396420859,1764964260158,-500.0,0.00016712,2]
[396420860,1764964260167,-1202.31,0.00016712,2]
[396420861,1764964260177,-500.0,0.00016712,2]
[396420862,1764964260187,-1019.58,0.00016712,2]
[396420863,1764964260196,-1283.59,0.00016712,2]
[396420864,1764964260207,-500.0,0.00016712,2]
[396420865,1764964260216,-500.0,0.00016712,2]
[396420866,1764964260225,-1200.75,0.00016712,2]
[396420867,1764964260234,-500.0,0.00016712,2]
[396420868,1764964260243,-506.37,0.00016712,2]
[396420869,1764964260252,-500.0,0.00016712,2]
[396420870,1764964260261,-500.0,0.00016712,2]
[396420871,1764964260270,-1231.58,0.00016712,2]
[396420872,1764964260279,-506.68,0.00016712,2]
[396420873,1764964260288,-654.39,0.00016712,2]
[396420874,1764964260297,-500.0,0.00016712,2]
[396420875,1764964260306,-500.0,0.00016712,2]
[396420876,1764964260315,-500.0,0.00016712,2]
[396420877,1764964260324,-500.0,0.00016712,2]
[396420878,1764964260333,-500.0,0.00016712,2]
[396420879,1764964260342,-1113.91,0.00016712,2]
[396420880,1764964260352,-663.62,0.00016712,2]
[396420881,1764964260361,-753.47,0.00016712,2]
[396420882,1764964260370,-1445.18,0.00016712,2]
[396420883,1764964260379,-500.0,0.00016712,2]
[396420884,1764964260389,-500.0,0.00016712,2]
[396420885,1764964260398,-500.0,0.00016712,2]
[396420886,1764964260407,-500.0,0.00016712,2]
[396420887,1764964260416,-500.0,0.00016712,2]
[396420888,1764964260425,-780.5,0.00016712,2]
[396420889,1764964260434,-889.08,0.00016712,2]
[396420890,1764964260443,-500.0,0.00016712,2]
[396420891,1764964260454,-2835.2,0.00016712,2]
[396420892,1764964260463,-500.0,0.00016712,2]
[396420893,1764964260473,-500.0,0.00016712,2]
[396420894,1764964260483,-500.0,0.00016712,2]
[396420895,1764964260492,-500.0,0.00016712,2]
[396420896,1764964260501,-500.0,0.00016712,2]
[396420897,1764964260510,-1729.46,0.00016712,2]
[396420898,1764964260519,-398.45248404,0.00016712,2]
[396420899,1764964260528,-500.0,0.00016712,2]
[396420900,1764964260538,-1979.46,0.00016712,2]
[396420901,1764964260548,-575.86,0.00016712,2]
[396420902,1764964260557,-500.0,0.00016712,2]
[396420903,1764964260566,-1835.34,0.00016712,2]
[396420904,1764964260576,-1316.03,0.00016712,2]
[396420905,1764964260586,-500.0,0.00016712,2]
[396420906,1764964260595,-908.87,0.00016712,2]
[396420907,1764964260604,-653.14,0.00016712,2]
[396420908,1764964260613,-500.0,0.00016712,2]
[396420909,1764964260623,-557.4,0.00016712,2]
[396420910,1764964260632,-978.78,0.00016712,2]
[396420911,1764964260643,-500.0,0.00016712,2]
[396420912,1764964260653,-500.0,0.00016712,2]
[396420913,1764964260662,-1274.81,0.00016712,2]
[396420914,1764964260673,-500.0,0.00016712,2]
[396420915,1764964260682,-500.0,0.00016712,2]
[396420916,1764964260691,-500.0,0.00016712,2]
[396420917,1764964260701,-1825.48,0.00016712,2]
[396420918,1764964260710,-1459.61,0.00016712,2]
[396420919,1764964260719,-500.0,0.00016712,2]
[396420920,1764964260728,-500.0,0.00016712,2]
[396420921,1764964260737,-2330.6,0.00016712,2]
[396420922,1764964260747,-1362.88,0.00016712,2]
[396420923,1764964260756,-2129.96,0.00016712,2]
[396420924,1764964260766,-500.0,0.00016712,2]
[396420925,1764964260775,-500.0,0.00016712,2]
[396420926,1764964260784,-500.0,0.00016712,2]
[396420927,1764964260793,-664.95,0.00016712,2]
[396420928,1764964260801,-1189.18,0.00016712,2]
[396420929,1764964260811,-500.0,0.00016712,2]
[396420930,1764964260820,-500.0,0.00016712,2]
[396420931,1764964260829,-989.95,0.00016712,2]
[396420932,1764964260839,-1775.43,0.00016712,2]
[396420933,1764964260847,-1334.27,0.00016712,2]
[396420934,1764964260857,-500.0,0.00016712,2]
[396420935,1764964260867,-500.0,0.00016712,2]
[396420936,1764964260877,-500.0,0.00016712,2]
[396420937,1764964260887,-500.0,0.00016712,2]
[396420938,1764964260897,-500.0,0.00016712,2]
[396420939,1764964260906,-796.25,0.00016712,2]
[396420940,1764964260915,-500.0,0.00016712,2]
[396420941,1764964260925,-500.0,0.00016712,2]
[396420942,1764964260934,-4147.96,0.00016712,2]
[396420943,1764964260943,-500.0,0.00016712,2]
[396420944,1764964260952,-500.0,0.00016712,2]
[396420945,1764964260961,-500.0,0.00016712,2]
[396420946,1764964260970,-677.16,0.00016712,2]
[396420947,1764964260979,-500.0,0.00016712,2]
[396420948,1764964260988,-3508.67,0.00016712,2]
[396420949,1764964261001,-3856.98,0.00016712,2]
[396420950,1764964261009,-1405.37,0.00016712,2]
[396420951,1764964261018,-500.0,0.00016712,2]
[396420952,1764964261027,-500.0,0.00016712,2]
[396420953,1764964261038,-8546.16,0.00016712,2]
[396420954,1764964261047,-595.52,0.00016712,2]
[396420955,1764964261057,-165.08307501,0.00016712,2]
[396420956,1764964261067,-2012.27,0.00016712,2]
[396420957,1764964261076,-500.0,0.00016712,2]
[396420958,1764964261085,-760.14,0.00016712,2]
[396420959,1764964261094,-500.0,0.00016712,2]
[396420960,1764964261104,-869.37,0.00016712,2]
[396420961,1764964261114,-2862.43,0.00016712,2]
[396420962,1764964261124,-500.0,0.00016712,2]
[396420963,1764964261133,-500.0,0.00016712,2]
[396420964,1764964261142,-1260.61,0.00016712,2]
[396420965,1764964261153,-27168.59,0.00016712,2]
[396420966,1764964261161,-2573.74,0.00016712,2]
[396420967,1764964261171,-500.0,0.00016712,2]
[396420968,1764964261179,-500.0,0.00016712,2]
[396420969,1764964261189,-1519.74,0.00016712,2]
[396420970,1764964261197,-3739.24,0.00016712,2]
[396420971,1764964261206,-837.97,0.00016712,2]
[396420972,1764964261215,-2210.97,0.00016712,2]
[396420973,1764964261224,-500.0,0.00016712,2]
[396420974,1764964261234,-879.68,0.00016712,2]
[396420975,1764964261243,-934.83,0.00016712,2]
[396420976,1764964261252,-1534.0,0.00016712,2]
[396420977,1764964261261,-613.38,0.00016712,2]
[396420978,1764964261270,-1145.34,0.00016712,2]
[396420979,1764964261279,-7737.29,0.00016712,2]
[396420980,1764964261288,-2245.52,0.00016712,2]
[396420981,1764964261299,-2897.13,0.00016712,2]
[396420982,1764964261308,-500.0,0.00016712,2]
[396420983,1764964261318,-3989.26,0.00016712,2]
[396420984,1764964261328,-1590.89,0.00016712,2]
[396420985,1764964261337,-4880.82,0.00016712,2]
[396420986,1764964261347,-500.0,0.00016712,2]
[396420987,1764964261357,-500.0,0.00016712,2]
[396420988,1764964261367,-2037.18,0.00016712,2]
[396420989,1764964261377,-500.0,0.00016712,2]
[396420990,1764964261386,-1939.29,0.00016712,2]
[396420991,1764964261395,-500.0,0.00016712,2]
[396420992,1764964261404,-500.0,0.00016712,2]
[396420993,1764964261414,-603.68,0.00016712,2]
[396420994,1764964261423,-500.0,0.00016712,2]
[396420995,1764964261432,-586.39,0.00016712,2]
[396420996,1764964261442,-500.0,0.00016712,2]
[396420997,1764964261451,-3745.52,0.00016712,2]
[396420998,1764964261460,-1761.7,0.00016712,2]
[396420999,1764964261469,-500.0,0.00016712,2]
[396421000,1764964261478,-500.0,0.00016712,2]
[396421001,1764964261487,-500.0,0.00016712,2]
[396421002,1764964261497,-500.0,0.00016712,2]
[396421003,1764964261506,-1154.72,0.00016712,2]
[396421004,1764964261515,-8082.89,0.00016712,2]
[396421005,1764964261523,-500.0,0.00016712,2]
[396421006,1764964261533,-500.0,0.00016712,2]
[396421007,1764964261542,-808.12,0.00016712,2]
[396421008,1764964261551,-500.0,0.00016712,2]
[396421009,1764964261560,-1316.55,0.00016712,2]
[396421010,1764964261569,-1061.67,0.00016712,2]
[396421011,1764964261578,-1179.67,0.00016712,2]
[396421012,1764964261587,-500.0,0.00016712,2]
[396421013,1764964261596,-500.0,0.00016712,2]
[396421014,1764964261605,-578.15311562,0.00016712,2]
[396421015,1764964261615,-500.0,0.00016712,2]
[396421016,1764964261624,-548.83,0.00016712,2]
[396421017,1764964261633,-500.0,0.00016712,2]
[396421018,1764964261642,-2735.13,0.00016712,2]
[396421019,1764964261651,-2878.01,0.00016712,2]
[396421020,1764964261660,-500.0,0.00016712,2]
[396421021,1764964261670,-500.0,0.00016712,2]
[396421022,1764964261679,-500.0,0.00016712,2]
[396421023,1764964261688,-6762.23,0.00016712,2]
[396421024,1764964261697,-1977.79,0.00016712,2]
[396421025,1764964261707,-500.0,0.00016712,2]
[396421026,1764964261716,-500.0,0.00016712,2]
[396421027,1764964261725,-500.0,0.00016712,2]
[396421028,1764964261734,-512.63,0.00016712,2]
[396421029,1764964261744,-531.05,0.00016712,2]
[396421030,1764964261753,-500.0,0.00016712,2]
[396421031,1764964261763,-690.27,0.00016712,2]
[396421032,1764964261772,-401.25539814,0.00016712,2]
[396421033,1764964261781,-588.28,0.00016712,2]
[396421034,1764964261791,-500.0,0.00016712,2]
[396421035,1764964261801,-500.0,0.00016712,2]
[396421036,1764964261811,-500.0,0.00016712,2]
[396421037,1764964261820,-500.0,0.00016712,2]
[396421038,1764964261830,-1011.28,0.00016712,2]
[396421039,1764964261839,-6262.41,0.00016712,2]
[396421040,1764964261849,-500.0,0.00016712,2]
[396421041,1764964261858,-2046.2,0.00016712,2]
[396421042,1764964261868,-500.0,0.00016712,2]
[396421043,1764964261878,-2730.7,0.00016712,2]
[396421044,1764964261886,-776.59,0.00016712,2]
[396421045,1764964261895,-632.99,0.00016712,2]
[396421046,1764964261904,-500.0,0.00016712,2]
[396421047,1764964261913,-9293.72,0.00016712,2]
[396421048,1764964261924,-500.0,0.00016712,2]
[396421049,1764964261933,-500.0,0.00016712,2]
[396421050,1764964261943,-1523.9,0.00016712,2]
[396421051,1764964261952,-500.0,0.00016712,2]
[396421052,1764964261961,-2206.65,0.00016712,2]
[396421053,1764964261970,-500.0,0.00016712,2]
[396421054,1764964261979,-1216.27,0.00016712,2]
[396421055,1764964261990,-890.47,0.00016712,2]
[396421056,1764964261999,-1517.87,0.00016712,2]
[396421057,1764964262008,-500.0,0.00016712,2]
[396421058,1764964262017,-500.0,0.00016712,2]
[396421059,1764964262026,-678.08,0.00016712,2]
[396421060,1764964262036,-12607.12,0.00016712,2]
[396421061,1764964262046,-1261.52,0.00016712,2]
[396421062,1764964262054,-3411.98,0.00016712,2]
[396421063,1764964262065,-500.0,0.00016712,2]
[396421064,1764964262074,-500.0,0.00016712,2]
[396421065,1764964262083,-8433.96,0.00016712,2]
[396421066,1764964262092,-500.0,0.00016712,2]
[396421067,1764964262101,-4594.16,0.00016712,2]
[396421068,1764964262110,-639.2,0.00016712,2]
[396421069,1764964262119,-564.07,0.00016712,2]
[396421070,1764964262129,-601.94,0.00016712,2]
[396421071,1764964262138,-500.0,0.00016712,2]
[396421072,1764964262147,-557.9,0.00016712,2]
[396421073,1764964262157,-768.56,0.00016712,2]
[396421074,1764964262166,-2955.98,0.00016712,2]
[396421075,1764964262176,-1537.53,0.00016712,2]
[396421076,1764964262189,-1822.27,0.00016712,2]
[396421077,1764964262198,-500.0,0.00016712,2]
[396421078,1764964262207,-500.0,0.00016712,2]
[396421079,1764964262217,-500.0,0.00016712,2]
[396421080,1764964262226,-1145.09,0.00016712,2]
[396421081,1764964262236,-500.0,0.00016712,2]
[396421082,1764964262246,-1807.2,0.00016712,2]
[396421083,1764964262256,-3671.84,0.00016712,2]
[396421084,1764964262264,-500.0,0.00016712,2]
[396421085,1764964262274,-1517.42,0.00016712,2]
[396421086,1764964262283,-1021.51,0.00016712,2]
[396421087,1764964262292,-500.0,0.00016712,2]
[396421088,1764964262301,-500.0,0.00016712,2]
[396421089,1764964262310,-1718.3,0.00016712,2]
[396421090,1764964262320,-15606.7,0.00016712,2]
[396421091,1764964262329,-500.0,0.00016712,2]
[396421092,1764964262338,-7505.89,0.00016712,2]